{"text_format":"1","workbook":"xlsx","n_sheets":10,"sheets":["Menu","Admin","Notice","Budget","Données financières","Réfs","Ex dépenses éligibles","JCJC","PRCE","Suivi versions"],"not_rendered":{"charts":0,"images":2,"macros":1,"external_links":0,"defined_names":1,"comments":4,"pivot_tables":0},"unopened":[],"bounds":{"document_bytes":16777216,"sheet_cells":100000,"rows_first":2000,"rows_last":500,"rows_between":2000,"halvings":0,"cell_chars":16384,"cell_head_chars":4096},"cells_cut":0,"cells_raw":0,"read":"whole","date_system":"1900"}

{"sheet":"Menu","index":0,"n_rows":4,"n_cols":14,"rows_kept":4,"cut":false,"hidden":false,"merged":[[1,1,1,9],[3,1,16,9]]}
[]
[null,"Bienvenue au kit ANR de la DRIVe destiné à aider le montage de projets ANR Générique",null,null,null,null,null,null,null,null,null,"Dernière mise à jour : ",null,"2025-02-27"]
[]
[null,"Ce kit présente 10 onglets : \nMenu\nAdmin : Les informations sur l’UBO dont vous avez besoin pour compléter l’onglet de l’ANR\nNotice : Des recommandations pour bien préparer le dossier\nBudget : Une aide pour la construction de votre budget. Vous pouvez obtenir un PDF pour votre référence.\nDonnées financières : Onglet dans lequel le calcul se fait automatiquement à partir des données chiffrées renseignées dans l'onglet \"Calcul\"\nDonnées financières : chiffres caluclées à reporter sur IRIS (plateforme de dépot de l'ANR)\nRéfs : Des documents outils de l'ANR\nEx de dépenses éligibles : une liste non exhaustive d'exemples de dépenses éligibles\nJCJC : spécificités concernant les jeunes chercheurs\nPRCE : spécificités concernant les projets avec les entreprises\nSuivi des vérsions : la date et les changements apportées entre des différent vérsions est noté pour vous permettre de savoir ce qui été modifié si vous avez travaillé avec une ancienne vérsion. \nSi vous avez besoin d'aide vous pouvez contacter Gemma DAVIES ou Anne-Louise NEDELEC à la DRIVe prenom.nom@univ-brest.fr"]

{"sheet":"Admin","index":1,"n_rows":34,"n_cols":8,"rows_kept":34,"cut":false,"hidden":false,"merged":[[14,6,14,12],[15,6,18,12],[6,6,6,12],[20,0,20,4],[1,6,1,12],[1,0,1,4],[2,6,3,12],[7,6,12,12],[2,1,2,3]]}
[]
["Tutelle Gestionnaire",null,null,null,null,null,"Unité de recherche : établissement gestionnaire du financement "]
["SIRET de la tutelle gestionnaire",94129831700012,null,null,null,null,"L'établissement des personnels qui effectue des bons de commandes et mets en \npaiement les factures "]
[]
["Nom de la tutelle gestionnaire","Université de Brest"]
[]
[null,null,null,null,null,null,"Unité de recherche : établissement hébergeant "]
["Personne habilitée à représenter juridiquement l'établissement gestionnaire ",null,null,null,null,null,"Selon le règlement financier de l'ANR, l'hébergeur est la tutelle du UR qui est propriétaire/gestionnaire du bâtiment dans lequel travaille la/le responsable scientifique du projet. L'hébergeur perçoit le PRECIPUT, qui est une participation de l'ANR à ses couts d'infrastructures de recherche, incluant ses couts immobiliers, d'investissement et de maintenance de plateformes et d'équipements mutualisés : centre de RMN, microscopie, BU etc"]
[]
["Civilité","Monsieur"]
["Nom","OLIVARD"]
["Prénom","Pascal"]
["Fonction","Président"]
["Adresse","3 rue Matthieu Gallou"]
[null,"29238 Brest Cedex 3",null,null,null,null,"Partenaire sur fonds propres ?"]
["Email","drive@univ-brest.fr",null,null,null,null,"Ajouter le partenaire comme pour les partenaires avec un financement et sur la page \"Annexe financière détaillée\" il y a une case à cocher \"sur fond propres\". Il faut toute même remplir toutes les données administratives pour passer les pastilles d'orange en vert "]
["Téléphone","02 98 01 60 07"]
["Fonction","Président"]
[]
[]
["Personne chargée du suivi administratif et financière"]
[]
["Civilité","Madame"]
["Nom","BOSSER"]
["Prénom","Kristen"]
["Email","drive@univ-brest.fr"]
["Téléphone","02 98 01 60 07"]
[]
[]
["Informations Bancaires"]
[]
["Nom de la banque","TPBREST - TRESORERIE GENERALE"]
["IBAN","FR76",1007,1290,"0000","0010","0279","091"]
["BIC/SWIFT","TRPUFRP1"]

{"sheet":"Notice","index":2,"n_rows":19,"n_cols":3,"rows_kept":19,"cut":false,"hidden":false,"merged":[[18,1,20,1],[18,2,20,2],[0,1,0,2],[13,0,15,0],[13,1,15,1],[3,1,8,1],[10,1,12,1],[10,2,12,2]]}
[null,"QUELQUES RECOMMANDATIONS "]
[null,"Implication \ndu coordinateur","Un coordinateur qui a obtenu un projet en coordination ne pourra pas soumettre en tant que coordinateur au titre du l'année suivante.\nUn coordinateur ne peut être impliqué dans plus de trois propositions : un chercheur ne peut être impliqué comme coordinateur ou responsable scientifique de partenaire dans plus de trois propositions soumises dans le cadre de l'appel à projet générique et du programme Fr-All SHS du Plan d’action 2021. Toutes les propositions qui seraient déposées en ne respectant pas cette règle sont inéligibles au plan d'action 2021 en tant que coordinateur ou responsable scientifique.\nPour l’édition 2020, tous les autres appels à projets (internationaux bilatéraux spécifiques hors appel franco-allemand SHS (FRAL), multilatéraux internationaux (Era-Net, JPI, EJP, Art. 185...), MRSEI, Astrid et Astrid Maturation, LabCom, Challenges, Chaires, Flashs...) ne sont pas concernés par cette limite d’implication.\n\nPour un JCJC, le porteur du projet devrait être impliqué à un taux d'environ 75% de son temps de recherche. Et celui d'un coordinateur d'environ 40% de son temps de recherche. "]
[null,"Changement de budget entre la phase 1 et la phase 2","L'amplitude de la modification budgétaire entre la phase 1 et la phase 2 est de +/- 7%. Cependant tout changement réglementaire (changement des frais de gestion…) qui intervient entre les deux phases n'est pas concerné par cette restriction. \nLe budget n'est pas évalué en phase 1 , néanmoins il est fortement conseillé d'être aussi précis que possible du fait de cette restriction."]
[null,"Les Personnels ","Taux de précarité : L’ensemble des personnels est comptabilisé en personne.mois. Un taux de 30% au plus est recommandé. "]
[null,null,"Taux de précarité (%) = personnels non permanents financé par l'ANR/ total des personnels permanents ou non permanents, financé ou non par l'ANR"]
[]
[null,null,"Seuls les personnels des établissement pour lesquels un financement est demandé à l'ANR entrent dans le calcul (notamment, les partenaires étrangers n'entrent pas dans ce calcul). Les doctorants et les stagiaires sont exclus du calcul (mais reste éligibles aux financements de l'ANR). "]
[]
[null,null,"Les Doctorants (PhD) : sont recrutés pour une durée maximale de 36 mois et doivent être budgétisés sur un seul partenaire du projet. Les salaires des doctorants ont été revalorisées attention aux augmentations. \n\nIndemnité de fin contrat : A partir du 1er janvier 2021, les personnes recrutées sur un CDD de droit public d’un an ou moins (renouvellement inclus) peuvent ouvrir le droit à l’indemnité de fin contrat (prime de précarité) si leur contrat n'est pas renouvelé. Cette indemnité est un coût éligible et à prévoir dans le salaire (+10%). Les post-docs ne sont pas concernés par cette indemnité car ils dependent du code de la recherche et non de la fonction publique. "]
[null,null,"Indemnité de stage :  On conseille de prévoir un budget qui prends en compte des augmentations. Voir onglet \"budget\", l'exemple d'un stage de 6 mois. "]
[null,"Pers.mois","Un personne.mois correspond à une personne à temps plein pendant un mois. Pour une personne qui travaille à temps plein sur 3 ans on compte 36 personne.mois (3*12*36). Pour une personne qui travaille à mi-temps sur 3 ans, on compte 18 personne.mois (3*6=18). \nCONSEIL : il est conseillé que le porteur soit impliqué au moins à 30% de son temps de recherche soit 3,6 personne.mois pour une personne à temps plein sur un projet de 12 mois. \n\nPour calculer l'implication d'un Enseignant Chercheur, le calcul se fait sur le temps que cette personne consacre à la recherche. Pour un Enseignant Chercheurs qui consacre 50% de son activité à la recherche et si son activité de recherche est consacré entièrement au projet déposé, on comptera 12 personne.mois ; si son activité de recherche est consacrée à 75% au projet déposé, on comptera 9 personne.mois. Cepenedant, pour le calcul du coût complet son salaire sera compté à 50%. "]
[]
[]
[null,"Matériels","Equipement informatique, scientifique, consommables, petits équipements…. "]
[null,null,"Règlement de l'UBO : équipement à partir de 600€ pour l'informatique et 800 € pour l'équipement scientifque est considéré comme de l'investissement. "]
[]
[null,"Prestation Service (droits de PI) - (à identifier dans poste DPI)","Le porteur peut faire exécuter des prestations par des tiers extérieurs au Projet.  Le coût de ces prestations doit rester inférieur ou égal à 50 % du coût global entrant dans l’assiette de l’aide."]
[null,"Frais généraux"," Ce poste comprend les dépenses  liées aux missions (hébergement, trajet, restauration), participation et organisation de colloques, frais de réception. Les APC (Article Processing Charges : frais demandé pour la publication d'articles directement en Open Access voie \"dorée\") sont éligibles. Voir l'onglet exemples de budgets. "]
[null,"PPST","Sur les recommandations du Service du haut fonctionnaire de défense et de sécurité  (SHFDS) du MESRI, l’ANR met en œuvre la PPST au cours de cet AAPG 2023 notamment pour les projets déposés comportant au sein de leurs consortiums, des entreprises étrangères ou des partenaires étrangers. D.6. Dispositif de protection du potentiel scientifique et technique de la nation (PPST). \nNote importante : En amont de tout dépôt de projet à l’ANR (tous les appels et instruments sont concernés), les déposants ou les déposantes sont invité.e.s à se rapprocher de leurs services en charge de l’application de la PPST au sein de leurs établissements (la DRIVe) afin de vérifier l’éligibilité de leur projet."]

{"sheet":"Budget","index":3,"n_rows":146,"n_cols":21,"rows_kept":146,"cut":false,"hidden":false,"merged":[[37,11,37,15],[46,1,46,8],[16,13,18,13],[14,8,15,13],[16,12,18,12],[32,8,33,11],[32,12,33,12],[22,1,22,3],[32,1,33,6],[121,2,136,2],[16,1,18,1],[16,4,18,4],[16,3,18,3],[14,1,15,6],[57,1,57,8],[40,1,40,8],[39,1,39,8],[38,1,38,8],[37,1,37,8],[45,1,45,8],[44,1,44,8],[43,1,43,8],[42,1,42,8],[41,1,41,8],[47,1,47,8],[6,1,6,2],[6,7,6,10],[9,3,9,4],[16,11,18,11],[16,9,18,9],[16,10,18,10],[1,11,7,12],[3,3,3,10],[2,3,2,10],[16,6,18,6],[6,3,6,4],[16,8,18,8],[16,5,18,5],[51,1,51,8],[50,1,50,8],[49,1,49,8],[56,1,56,8],[55,1,55,8],[54,1,54,8],[53,1,53,8],[52,1,52,8]]}
[]
[]
[null,"Porteur (Nom/Prénom)",null,null,null,null,null,null,null,null,null,null,null,null,null,null,null,null,null,null,"Paramètres menu déroulant"]
[null,"Unité",null,"UNITE/SIGLE",null,null,null,null,null,null,null,null,null,null,null,null,null,null,"EC liste",null,"Coûts personnel "]
[null,null,null,null,null,null,null,null,null,null,null,null,null,null,null,null,null,null,"oui",null,"CDD"]
[null,null,null,null,null,null,null,null,null,null,null,null,null,null,null,null,null,null,"non",null,"CDI"]
[null,"ACRONYME (Projet)",null,null,null,null,"N°RNSR",null,null,null,null,null,null,null,null,null,null,null,null,null,"Doctorant"]
[null,null,null,null,null,null,null,null,null,null,null,null,null,null,null,null,null,null,null,null,"Décharge (sans pers.mois)"]
[null,null,null,null,null,null,null,null,null,null,null,null,null,null,null,null,null,null,null,null,"Stagiaire"]
[null,"Durée du projet (en mois): ",null,null,null,null,null,null,null,null,null,null,null,null,null,null,null,null,null,null,"Auto entrepreneur"]
[null,null,null,null,null,null,null,null,null,null,null,null,null,null,null,null,null,null,null,null,"Titulaire"]
[]
[]
[]
[null,"(Pour le calcul du cout complet phase 2) Personnel non financé par ANR\n(obtenir les coûts auprès de l'employeur)",null,null,null,null,null,null,"Personnel financés par l'ANR \n(obtenir les coûts auprès de l'employeur)"]
[]
[null,"Catégorie\n(renseigner le grade de l'agent)",null,"Activité d'Enseignant-chercheur ","Nombre pers.mois","coût \nmensuel €","Estimation  €\n(coût moyen)",null,"Catégorie\n(renseigner le grade de l'agent)","Statut (calcul de taux de précarité)","Nombre pers.mois","coût \nmensuel €","Indemnité de fin contrat (CDDs≤1an)","Estimation \nCoût  €",null,null,"Button pour supprimer les exemples "]
[null,null,"Statut"]
[null,null,null,null,null,null,null,null,null,null,null,null,null,null,null,null,null,null,null,"homme.mois précaire"]
[null,"Exemple MCF","Titulaire","oui",26,5000,{"$f":"IF(D20=$S$5,($F20/2)*$E20,($F20*$E20))","v":65000},null,"Exemple IGE","CDD",12,3300,{"$f":"IF(AND(J20=\"CDD\",K20<=12),(L20*K20)*0.1,0)","v":3960},{"$f":"L20*K20+M20","v":43560},null,null,null,null,"calcule taux de précarité",{"$f":"IF(J20=\"CDD\",K20,\"\")","v":12}]
[null,"Exemple Pr","Titulaire","oui",8,9000,36000,null,"Exemple Stagiaire","Stagiaire",6,750,{"$f":"IF(AND(J21=\"CDD\",K21<=12),(L21*K21)*0.1,0)","v":0},4500,null,null,null,null,null,{"$f":"IF(J21=\"CDD\",K21,\"\")","v":""}]
[null,"Exemple Chercheur CDD","CDD","non",6,4000,24000,null,"Exemple Doctorant","Doctorant",36,{"$f":"130000/K22","v":3611.1111111111113},0,130000,null,null,null,null,null,{"$f":"IF(#REF!=\"CDD\",#REF!,\"\")","v":{"$error":"#REF!"}}]
[null,"Secteur privé : demander à l'entreprise",null,null,null,null,{"$f":"IF(D23=$S$5,($F23/2)*$E23,($F23*$E23))","v":0},null,"Exemple Post-doc","CDD",12,4666,0,55992,null,null,null,null,null,{"$f":"IF(J22=\"CDD\",K22,\"\")","v":""}]
[null,null,null,null,null,null,0,null,null,null,null,null,{"$f":"IF(AND(J24=\"CDD\",K24<=12),(L24*K24)*0.1,0)","v":0},{"$f":"L24*K24+M24","v":0},null,null,null,null,null,{"$f":"IF(J23=\"CDD\",K23,\"\")","v":12}]
[null,null,null,null,null,null,0,null,null,null,null,null,{"$f":"IF(AND(J25=\"CDD\",K25<=12),(L25*K25)*0.1,0)","v":0},{"$f":"3*12*L25","v":0},null,null,null,null,null,{"$f":"IF(#REF!=\"CDD\",#REF!,\"\")","v":{"$error":"#REF!"}}]
[null,null,null,null,null,null,0,null,null,null,null,null,{"$f":"IF(AND(J24=\"CDD\",K24<=12),(#REF!*K24)*0.1,0)","v":0},0,null,null,null,null,null,{"$f":"IF(J24=\"CDD\",K24,\"\")","v":""}]
[null,null,null,null,null,null,0,null,null,null,null,null,0,0,null,null,null,null,null,""]
[null,null,null,null,null,null,0,null,null,null,null,null,0,{"$f":"L28*K28+M28","v":0},null,null,null,null,null,""]
[null,null,null,null,null,null,0,null,null,null,null,null,0,0,null,null,null,null,null,""]
[null,null,null,null,null,null,0,null,null,null,null,null,0,0,null,null,null,null,null,""]
[null,"Total ",null,{"$f":"COUNTA(D20:D30)","v":3},{"$f":"SUM(E20:E30)","v":40},{"$f":"SUM(F20:F30)","v":18000},{"$f":"SUM(G20:G30)","v":125000},null,"Total financé ANR",{"$f":"COUNTIF(J20:J30,\"CDD\")","v":2},{"$f":"SUM(K20:K30)","v":66},{"$f":"SUM(L20:L30)","v":12327.111111111111},null,{"$f":"SUM(N20:N30)","v":234052},null,null,null,null,null,{"$f":"SUM(T20:T30)","v":{"$error":"#REF!"}}]
[]
[null,"Personne-mois : Le nombre de personne-mois se calcule à partir du temps de recherche consacré\n au projet",null,null,null,null,null,null,"Taux de précarité (doctorants et stagiaires exclus)",null,null,null,{"$f":"T31/(E31+K31)","v":{"$error":"#REF!"}}]
[]
[]
[]
[]
[null,"Instruments et matériels",null,null,null,null,null,null,null,{"$f":"J39+J40+J41","v":0}]
[null,"Achat de matériels (équipement, frais de transport, frais d'installation, frais de maintenance/révision/entretien, frais de réparation, frais d'évolution)",null,null,null,null,null,null,null,{"$f":"0","v":0}]
[null,"Consommables \"scientifiques\" (ordinateurs, logiciels, produits chimiques, ...)",null,null,null,null,null,null,null,{"$f":"0","v":0}]
[null,"Location de matériels ",null,null,null,null,null,null,null,{"$f":"0","v":0}]
[null,"Bâtiment et terrains",null,null,null,null,null,null,null,{"$f":"0","v":0}]
[null,"Location de locaux scientifiques ",null,null,null,null,null,null,null,{"$f":"0","v":0}]
[null,"Aménagement de locaux existants (montant de l'amortissement des travaux d'aménagement)",null,null,null,null,null,null,null,{"$f":"0","v":0}]
[null,"Prestations de services et DPI (Limité à 50% du montant de l'aide)",null,null,null,null,null,null,null,{"$f":"J46+J47+J48","v":0}]
[null,"Prestations intellectuelles (frais de PI, conseils, études marketing…)",null,null,null,null,null,null,null,{"$f":"0","v":0}]
[null,"Sous-traitance \"scientifique\" (analyse et essais techniques, saisie ou collecte de données, élimination des déchets)",null,null,null,null,null,null,null,{"$f":"0","v":0}]
[null,"Frais de publication (Article Processing Charges, traductions, ouvrages …)",null,null,null,null,null,null,null,{"$f":"0","v":0}]
[null,"Frais généraux ",null,null,null,null,null,null,null,{"$f":"J50+J51+J52","v":0}]
[null,"Frais de missions (frais d'inscription, hébergement, transport, visa, …)",null,null,null,null,null,null,null,{"$f":"0","v":0}]
[null,"Frais de réception",null,null,null,null,null,null,null,{"$f":"0","v":0}]
[null,"Participation/organisation de colloques",null,null,null,null,null,null,null,{"$f":"0","v":0}]
[null,"Dépenses de facturation interne",null,null,null,null,null,null,null,{"$f":"J54+J55","v":0}]
[null,"Utilisation de plateformes",null,null,null,null,null,null,null,{"$f":"0","v":0}]
[null,"Location locaux ",null,null,null,null,null,null,null,{"$f":"0","v":0}]
[null,"Dépenses de facturation entre partenaires (externe à l'UBO)",null,null,null,null,null,null,null,{"$f":"J57+J58","v":0}]
[null,"Utilisation de plateformes",null,null,null,null,null,null,null,{"$f":"0","v":0}]
[null,"Location locaux",null,null,null,null,null,null,null,{"$f":"0","v":0}]
[]
[]
[]
[]
[]
[]
[]
[]
[]
[]
[]
[]
[]
[]
[]
[]
[]
[]
[]
[]
[]
[]
[]
[]
[]
[]
[]
[]
[]
[]
[]
[]
[]
[]
[]
[]
[]
[]
[]
[]
[]
[]
[]
[]
[]
[]
[]
[]
[]
[]
[]
[]
[]
[]
[]
[]
[]
[]
[]
[]
[]
[]
[]
[null,null,"Alertes erreurs",{"$f":"IF(#REF!=\"catégorie\",1,0)","v":{"$error":"#REF!"}},null,null,null,null,null,null,null,{"$f":"IF(#REF!=\"catégorie\",1,0)","v":{"$error":"#REF!"}},{"$f":"IF(#REF!=\"catégorie\",1,0)","v":{"$error":"#REF!"}},{"$f":"IF(#REF!=\"catégorie\",1,0)","v":{"$error":"#REF!"}}]
[null,null,null,{"$f":"IF(SUM(#REF!)>0,1,0)","v":{"$error":"#REF!"}},null,null,null,null,null,null,null,{"$f":"IF(SUM(K20:K20)>0,1,0)","v":1},{"$f":"IF(SUM(N20:N20)>0,1,0)","v":1},{"$f":"IF(SUM(#REF!)>0,1,0)","v":{"$error":"#REF!"}}]
[null,null,null,{"$f":"D122+D123","v":{"$error":"#REF!"}},null,null,null,null,null,null,null,{"$f":"L122+L123","v":{"$error":"#REF!"}},{"$f":"M122+M123","v":{"$error":"#REF!"}},{"$f":"N122+N123","v":{"$error":"#REF!"}}]
[]
[]
[]
[]
[null,null,null,{"$f":"IF(I21=\"catégorie\",1,0)","v":0},null,null,null,null,null,null,null,{"$f":"IF(I22=\"catégorie\",1,0)","v":0},{"$f":"IF(#REF!=\"catégorie\",1,0)","v":{"$error":"#REF!"}},{"$f":"IF(I27=\"catégorie\",1,0)","v":0}]
[null,null,null,{"$f":"IF(SUM(#REF!)>0,1,0)","v":{"$error":"#REF!"}},null,null,null,null,null,null,null,{"$f":"IF(SUM(#REF!)>0,1,0)","v":{"$error":"#REF!"}},{"$f":"IF(SUM(#REF!)>0,1,0)","v":{"$error":"#REF!"}},{"$f":"IF(SUM(#REF!)>0,1,0)","v":{"$error":"#REF!"}}]
[null,null,null,{"$f":"D129+D130","v":{"$error":"#REF!"}},null,null,null,null,null,null,null,{"$f":"L129+L130","v":{"$error":"#REF!"}},{"$f":"M129+M130","v":{"$error":"#REF!"}},{"$f":"N129+N130","v":{"$error":"#REF!"}}]
[]
[]
[]
[null,null,null,{"$f":"IF(#REF!=\"catégorie\",1,0)","v":{"$error":"#REF!"}},null,null,null,null,null,null,null,{"$f":"IF(#REF!=\"catégorie\",1,0)","v":{"$error":"#REF!"}},{"$f":"IF(#REF!=\"catégorie\",1,0)","v":{"$error":"#REF!"}},{"$f":"IF(#REF!=\"catégorie\",1,0)","v":{"$error":"#REF!"}}]
[null,null,null,{"$f":"IF(SUM(#REF!)>0,1,0)","v":{"$error":"#REF!"}},null,null,null,null,null,null,null,{"$f":"IF(SUM(#REF!)>0,1,0)","v":{"$error":"#REF!"}},{"$f":"IF(SUM(#REF!)>0,1,0)","v":{"$error":"#REF!"}},{"$f":"IF(SUM(#REF!)>0,1,0)","v":{"$error":"#REF!"}}]
[null,null,null,{"$f":"D135+D136","v":{"$error":"#REF!"}},null,null,null,null,null,null,null,{"$f":"L135+L136","v":{"$error":"#REF!"}},{"$f":"M135+M136","v":{"$error":"#REF!"}},{"$f":"N135+N136","v":{"$error":"#REF!"}}]
[]
[]
[]
[]
[null,null,null,{"$f":"IF(#REF!=\"\",1,0)","v":{"$error":"#REF!"}},null,null,null,null,null,null,null,{"$f":"IF(#REF!>0,1,0)","v":{"$error":"#REF!"}},{"$f":"IF(#REF!>0,1,0)","v":{"$error":"#REF!"}},{"$f":"#REF!+M142","v":{"$error":"#REF!"}}]
[null,null,null,{"$f":"IF(#REF!=\"\",1,0)","v":{"$error":"#REF!"}},null,null,null,null,null,null,null,{"$f":"IF(#REF!>0,1,0)","v":{"$error":"#REF!"}},{"$f":"IF(#REF!>0,1,0)","v":{"$error":"#REF!"}},{"$f":"#REF!+M143","v":{"$error":"#REF!"}}]
[null,null,null,{"$f":"IF(#REF!=\"\",1,0)","v":{"$error":"#REF!"}},null,null,null,null,null,null,null,{"$f":"IF(#REF!>0,1,0)","v":{"$error":"#REF!"}},{"$f":"IF(#REF!>0,1,0)","v":{"$error":"#REF!"}},{"$f":"#REF!+M144","v":{"$error":"#REF!"}}]
[null,null,null,{"$f":"IF(#REF!=\"\",1,0)","v":{"$error":"#REF!"}},null,null,null,null,null,null,null,{"$f":"IF(#REF!>0,1,0)","v":{"$error":"#REF!"}},{"$f":"IF(#REF!>0,1,0)","v":{"$error":"#REF!"}},{"$f":"#REF!+M145","v":{"$error":"#REF!"}}]
[null,null,null,{"$f":"IF(#REF!=\"\",1,0)","v":{"$error":"#REF!"}},null,null,null,null,null,null,null,{"$f":"IF(#REF!>0,1,0)","v":{"$error":"#REF!"}},{"$f":"IF(#REF!>0,1,0)","v":{"$error":"#REF!"}},{"$f":"#REF!+M146","v":{"$error":"#REF!"}}]

{"sheet":"Données financières","index":4,"n_rows":27,"n_cols":17,"rows_kept":27,"cut":false,"hidden":false,"merged":[[20,6,20,7],[23,5,23,6],[23,7,23,8],[5,11,7,11],[15,6,15,7],[17,6,17,7],[18,6,18,7],[12,6,12,7],[1,1,1,7],[3,0,3,11],[5,0,8,0],[5,1,6,2],[5,3,6,4],[5,5,6,6],[5,7,7,7],[5,8,7,8],[5,9,7,9],[5,10,7,10]]}
[null,null,null,null,null,null,null,null,null,null,null,"Date simulation"]
["ACRONYME",{"$f":"Budget!D7","v":0},null,null,null,null,null,null,null,null,null,{"$f":"NOW()","v":"2025-02-27T14:47:39.800"}]
[]
["SYNTHESE DES DONNEES QUI SERONT A REPORTER SUR LE SITE DE SOUMISSION DE L'ANR"]
[]
["Postes de dépenses","Personnels Permanents",null,"non permanents avec financement\nANR demandé",null,"non permanents sans financement \nANR demandé",null,"Instruments et matériels","Bâtiments et terrains","Prestations de services (DPI)","Frais généraux ","Totaux"]
[]
[null,"cout","pers.mois","cout","pers.mois","cout","pers.mois"]
[null,{"$f":"Budget!G31-F9","v":101000},{"$f":"Budget!E31-G9","v":34},{"$f":"Budget!N31","v":234052},{"$f":"Budget!K31","v":66},{"$f":"SUMIF(Budget!C20:C30,Budget!U5,Budget!G20:G30)+SUMIF(Budget!C20:C30,Budget!U7,Budget!G20:G30)+SUMIF(Budget!C20:C30,Budget!U8,Budget!G20:G30)+SUMIF(Budget!C20:C30,Budget!U9,Budget!G20:G30)","v":24000},{"$f":"SUMIF(Budget!C20:C30,Budget!U5,Budget!E20:E30)+SUMIF(Budget!C20:C30,Budget!U7,Budget!E20:E30)+SUMIF(Budget!C20:C30,Budget!U8,Budget!E20:E30)+SUMIF(Budget!C20:C30,Budget!U9,Budget!E20:E30)","v":6},{"$f":"Budget!J38+Budget!J54+Budget!J57","v":0},{"$f":"Budget!J58+Budget!J55+Budget!J42","v":0},{"$f":"Budget!J45","v":0},{"$f":"Budget!J49","v":0},{"$f":"B9+D9+F9+H9+I9+J9+K9","v":359052}]
[]
[]
[null,null,null,"Frais de gestion tutelle gestionnaire",null,null,0.105]
[null,null,null,"Total des frais d'environnement",null,null,{"$f":"(D9+H9+I9+J9+K9)*G12","v":24575.46}]
[]
[null,null,null,"Frais de gestion laboratoire",null,null,0.03,null,null,null,null,null,null,null,null,null,"€"]
[null,null,null,"Total des frais d'environnement",null,null,{"$f":"(D9+H9+I9+J9+K9)*G15","v":7021.5599999999995}]
[]
[null,null,null,null,"Coût déclaré (€)",null,{"$f":"L9+G16+G13","v":390649.02}]
[null,null,null,null,"Taux d'aide demandé(%)",null,100]
[]
[null,null,null,null,"Assiette (€)",null,{"$f":"D9+H9+I9+J9+K9+G16+G13","v":265649.02}]
[]
[]
[null,null,null,"Aide demandée ",null,{"$f":"G21","v":265649.02},null,"€"]
[null,null,null,null,null,"dont",{"$f":"Budget!J53","v":0},"€ au titre de la facturation interne sur la totalité du projet"]
[]
[null,null,null,null,null,"dont",{"$f":"Budget!J56","v":0},"€ au titre de la facture entre partenaires sur la totalité du projet "]

{"sheet":"Réfs","index":5,"n_rows":10,"n_cols":3,"rows_kept":10,"cut":false,"hidden":false,"merged":[]}
[]
[]
[null,null,"DOCUMENTS, REFERENCES et OUTILS en LIGNE"]
[null,"ANR","Le Plan d'Action de l'ANR"]
[null,null,"Texte de l'AAP Générique"]
[null,null,"Guide de l'appel à projets"]
[null,null,"ANR Tour replay"]
[null,"UBO","Coûts salariaux des personnels BIATSS UBO"]
[null,null,"N° RNSR Répertoire national"]
[null,".gouv","Simulateur - Calcul de la gratification minimale d'un stagiaire"]

{"sheet":"Ex dépenses éligibles","index":6,"n_rows":47,"n_cols":6,"rows_kept":47,"cut":false,"hidden":false,"merged":[[46,0,46,3],[40,0,41,0],[17,0,24,0],[2,3,7,3],[26,0,38,0],[20,3,21,3],[2,0,15,0],[17,3,19,3],[14,3,15,3]]}
[]
[null,"Type de dépense (indicatif)","Exemples de dépenses (hors RH)","Commentaires"]
["Instruments et matériels","Achat de matériels","Ordinateur ","Les dépenses doivent être justifiés par les besoins scientifiques du projet.\nEquipement est à acheter de le début du projet sauf s'il y a une raison spécifique qui le justifie (l'arriver d'un post doc en année 3 du projet par exemple). \n"]
[null,"Achat de matériels","Tablette"]
[null,"Achat de matériels","IPhone"]
[null,"Achat de matériels","Fourniture de bureau"]
[null,"Achat de matériels","Disque dur externe"]
[null,"Achat de matériels","Lunettes 3D"]
[null,"Achat de matériels","Bases de données","Les bases de données et les logiciels peuvent être considéré comme des immobilisations incorporelles. "]
[null,"Achat de matériels","Logiciels"]
[null,"Achat de matériels","Dictaphone"]
[null,"Achat de matériels","Livres scientifiques / documentation …"]
[null,"Achat de matériels","Tenue de plongée"]
[null,"Achat de matériels","Articles spécifiques ","Exemple des chocolats pour une étude sensorielle, tenue de plongé pour un doctorant, …"]
[null,"Location de matériels ","Véhicule","Le choix entre achat et location est purement financière. Si c'est moins cher d'acheter cela se défend à l'ANR\n même pour une voiture. "]
[null,"Location de matériels ","Bornes de saisie"]
[]
["Prestation de service","Prestations intellectuelles","Transcription d'enregistrements","Les devis ou anciennes factures peuvent servir pour vous donner une idée de combien budgétiser"]
[null,"Prestations intellectuelles","Traductions"]
[null,"Prestations intellectuelles","Etudes de marketing"]
[null,"Prestations intellectuelles","Plateforme de partage de données","Dans le plan gestion de données, vous êtes invité à penser au cycle de vie des données depuis leur création, \npartage, gestion et éventuellement diffusion. Certains archives sont payantes d'autres non. Eskemm data est une solution de stockage de données sécurisé"]
[null,"Prestations intellectuelles","Stockage de données"]
[null,"Prestations intellectuelles","Consultation juridique"]
[null,"Prestations intellectuelles","Formation spécifique pour une membre de l'équipe"]
[null,"Sous-traitance \"scientifique\"","Traitement statistique"]
[]
["Frais généraux","Frais de missions","Transport : avion, train, voiture, bateau, \nbus, tram, métro","Attention au remboursement : dés que possible demander aux gestionnaires de acheter des billets via le marché au lieu d'avancer car le remboursement des frais de mission est possible que si vous partez. \n"]
[null,"Frais de missions","Location de véhicule"]
[null,"Frais de missions","Restauration","Pour les frais de mission il faut se référer aux règles de l'établissement. "]
[null,"Frais de missions","Hébergement : Hôtel, RBnB, location gite"]
[null,"Frais de missions","Visa"]
[null,"Frais de missions","Inscription conférence, colloque"]
[null,"Organisation de colloques","Location de salle"]
[null,"Organisation de colloques","Frais de bouche"]
[null,"Organisation de colloques","Cadeaux","Sac de colloque, stylo, calepin, cadeaux, …"]
[null,"Organisation de colloques","Frais de mission des invités"]
[null,"Organisation de colloques","Communication","Posters, site internet, actes de colloque, programmes, impression en facturation interne"]
[null,"Frais de publication","Article Processing Charges","Pour la publication d'articles en voie dorée\nA noter le DOI avec la dépense pour faciliter le travail de recensement des APC's payé (un remboursement d'une partie des APC est fait par l'éditeur à l'UBO). Code XC.1 (de XC.12 à XC.17) dans SIFAC",null,"XC.1"]
[null,"Frais de publication","Publication de livres",null,null,"FRAIS DE PUBLICATION"]
[null,null,null,null,null,"XC.12 R315 FRAIS DE PUBLICATION D'ANNONCES DE RECRUTEMENT"]
["Dépenses de facturation\n interne","Prestations intellectuelles","Traductions (Bureau des Traducteurs)",null,null,"XC.13 R316 AUTRES FRAIS DE PUBLICATION (BOAMP,…)"]
[null,"Utilisation des plateformes UBO \n","Analyses","Prévoir 25 à 30% de plus. Par exemple vous avez besoin de faire 50 analyses RMN on vous conseille de prévoir 70 exemple pour prévenir des aléas de la recherche. Si vous avez une plus grand incertitude, vous pouvez prévoir plus. ",null,"XC.14 R462 FRAIS POUR PUBLICATION EN ACCES OUVERT D’UN ARTICLE SCIENTIFIQUE (Article processing charge)"]
[null,null,null,null,null,"XC.15 R463 FRAIS POUR PUBLICATION EN ACCES OUVERT D’UNE MONOGRAPHIE (Book processing charge)"]
["Dépenses de facturation entre partenaires \n(externe à l'UBO)","Utilisation des plateforme \nautres que celles de l'UBO","Analyses",null,null,"XC.16 R464 FRAIS DE LIBERATION DE PUBLICATIONS SCIENTIFIQUES POUR DIFFUSION EN ACCES OUVERT"]
[null,null,null,null,null,"XC.17 R465 FRAIS DE PUBLICATIONS SCIENTIFIQUES POUR SERVICES (soumission, aide à la publication d’ouvrage, figures"]
[null,null,null,null,null,"et pages supplémentaires)"]
["L’ACHAT DURABLE DANS LES PROJETS ANR ET EUROPEENS - ANR GENERIQUE\n1- Achat d’équipements neufs ou d’occasion\nLes coût d’acquisition des instruments, des matériels et des consommables scientifiques utilisés spécifiquement pour la réalisation du Projet éligibles dans les conditions suivantes :\nCas des Bénéficiaires à coût marginal\n– Achat : le prix d’achat des instruments et matériels est admissible\nCas des Bénéficiaires à coût complet\n– Achat : seuls les coûts d’amortissement correspondant à la durée du projet sont admissibles. Les biens acquis peuvent être neufs ou d’occasion, sous réserve du respect des procédures d’achat public.\n2- Location d’équipement\nLes coûts de location des instruments, des matériels et des consommables scientifiques utilisés spécifiquement pour la réalisation du Projet sont éligibles, dans la limite de la durée du projet.\n3- Frais de de maintenance / révision / entretien, de réparation, d’adaptation ou d’évolution d’un matériel/instrument existant\nLes frais de maintenance / révision / entretien, de réparation, d’adaptation ou d’évolution d’un matériel/instrument existant sont admissibles.\n"]

{"sheet":"JCJC","index":7,"n_rows":21,"n_cols":13,"rows_kept":21,"cut":false,"hidden":false,"merged":[[1,1,8,9],[11,1,12,9],[15,1,15,9],[1,12,3,20]]}
[]
[null,"Décharges JCJC :\nPour atteindre 75% d'implication (idéale) : (pour un projet de 48 mois cela fait 36 personne.mois minimum pour le porteur), un jeune chercher peut demander des décharges d'enseignement. Points importants : \n- La demande de décharge doit être vue au Conseil d'Administration de l'UBO. \n- La décharge peut être sur une partie de la durée du projet. Une décharge la première année par exemple n'est pas très réaliste.\n- Le cout de la décharge est calculé à partir du salaire chargé du porteur. Pour une décharge de 96h/an c'est 1/4 du salaire cout employeur. Vous pouvez demander à la DRIVe ou la DRH pour connaitre le montant ou regarder votre bulletin de salaire.  \n- La décharge ne peut pas dépasser 96h/an.",null,null,null,null,null,null,null,null,null,null,"Les modulations de service d’enseignement (ou décharges d’enseignement) sont des dépenses éligibles uniquement dans le cas de l’instrument de financement « jeunes chercheuses – jeunes chercheurs » (JCJC) \net limitées au coordinateur scientifique."]
[]
[]
[]
[]
[]
[]
[]
[]
[]
[null,"Eligibilité JCJC : la soutenance de thèse doit dater de moins de 10 ans (dérogation 1 année par enfant)\n5 ans de carrière (de CDI / MCF - CDDs et Post Docs non inclus)"]
[]
[]
[]
[null,"Le choix entre JCJC ou PRC :\nSi vous êtes éligible au JCJC, la plupart du temps, il est recommandé de proposer votre projet avec cet instrument. Il est fait pour soutenir les jeunes chercheurs, les aider à construire leur expérience en recherche sur projets, créer leur propre équipe sur une thématique personnelle avec une approche originale. Cependant, si vous avez déjà une carrière bien établie dans votre domaine de recherche : HDR avec plusieurs publications, en charge d'une équipe et/ou que vous avez géré plusieurs projets de recherche et que votre projet est multi partenaire ... il est recommandé (même si vous êtes éligible au JCJC) de proposer le projet en PRC. "]
[]
[null,"Procedure demande de décharges d'enseignement (suite à la conventionnement du projet) :"]
[null,"Ecrire une lettre au Président sous couvert DRH"]
[null,"Lettre type demande des décharges d'enseignement : ",null,null,null,null,"https://www.univ-brest.fr/digitalAssets/105/105119_Lettre_demande_de--charge.docx"]
[null,"La demande serait validé en CA ou accordé par un arreté du President"]

{"sheet":"PRCE","index":8,"n_rows":6,"n_cols":2,"rows_kept":6,"cut":false,"hidden":false,"merged":[]}
[]
[null,"Pour les bénéficiaires à couts complets, incluant les entreprises (dans les PRCE) mais aussi d'autres partenaires de droit privé engagés dans des\n PRC, il y a 2 points de vigilance:"]
[]
[null,"1. le taux d'aide ANR varie en fonction de la catégorie de recherche (R fondamentale, Développement Expérimental, ou R industrielle) dont les \ndéfinitions sont données en Annexe du Règlement financier"]
[]
[null,"2. il est fondamental d'interroger les services comptables de l'entreprise pour avoir une idée réaliste de son taux réel de frais généraux (overheads) en % de ses couts salariaux. \nEn effet, le taux maximal de 68% autorisé par l'ANR est tout sauf réaliste pour une TPE ou PME, en particulier s'il s'agit d'une entreprise de conseil ou d'un bureau d'études qui a très peu de frais d'infrastructures immobilières et/ou d'équipement lourds de recherche (un taux de 15 à 25 % est souvent plus proche de la réalité)."]

{"sheet":"Suivi versions","index":9,"n_rows":31,"n_cols":2,"rows_kept":31,"cut":false,"hidden":false,"merged":[]}
[]
["Nouvelle version ","Modifications"]
["2021-03-30","+ information sur le fait que les décharges sont uniquement dans le cadres des JCJCs"]
["2021-04-07","Correction erreur calcule des frais de gestion 12% au lieu de 8% onglet données financière"]
["2021-04-08","+ calcule de taux de précarité et code NACRES pour les APC dans exemples de dépenses"]
["2021-04-20","revalorisation du coût décharge de 5390 à 5602€/mois"]
["2021-10-19","+ nouveautés 2022, éligibilité JCJC"]
["2021-11-03","correction notice +/-7% entre ph1 et ph2"]
["2021-11-15","Changement du responsable administrative, ergonomie, mise à jour de liens "]
["2021-12-01","modification n° de téléphone resposable administrative DRIVe (Kristen Bosser) 60 18"]
["2022-01-11","modification n° de téléphone resposable administrative DRIVe à 60 07"]
["2022-03-08","modification gratifcation stage (prix prends en compte des éventuels augmentations), \n*cout d'un décharge (JCJC)"]
["2022-03-15","correction erreur de calcule de l'assiette : ajout des frais de gestion de 10%"]
["2022-03-16","ajout calcule décharges JCJC onglé budget"]
["2022-03-21","modifications de la présentation des données admin pour mieux correspondre à l'interface IRIS. Ajout de l'adresse mail & téléphone du resp. juridique.\nModification des frais de gestion de 2% UR à 2,5% et 10% d'établissement à 10,5% onglé données financières"]
["2022-07-06","Clarification de IBAN pour mieux correspondre au site de l'ANR"]
["2022-11-04","Changement de l'information concernant le calcul décharges JCJC, correction de l'exemple de cout d'un décharge, suppression \"nouveautés 2021\"; \naugmentation des stages à 700€/mois (à cause d'inflation) ; conseil de majorer les couts voir \"menu: nouveautés\""]
["2022-11-17","Mise à jour des refs, explications sur la procedure demande de décharges JCJC, ajoute du\n lien des n° RNSR & codes UR"]
["2023-02-09","Changement du Président - Matthieu GALLOU à Pascal OLIVARD"]
["2023-03-01","Changement préciput UR 3% au lieu de 2,5%"]
["2023-03-02","Ajout explication personne.mois onglet \"notice\" + modification gratification de stage onglet \"notice\" + information PPST"]
["2023-08-21","Complement d'information concernant les dépenses éligibles équipement"]
["2023-09-19","Révalorisation de la thèse (120k€ à 130K€) et stage (700 à 750€/mois) & modification de la préciput labo et gestionnaire"]
["2023-10-13","Révalorisation salaire post doc & précision sur le calcul des personnes non financées (onglet données financières)"]
["2023-12-18","Changement de rue des archives -> Matthieu Gallou"]
["2024-01-25","Modifications salariales concernant les post-docs"]
["2024-03-15","Correction cas J48 \"budget\""]
["2024-03-20","Modification des informations admin changement de mail (drive) et n° de téléphone (60.07)"]
["2024-04-02","Buget \"frais de publication\" dans préstations de services au lieu de frais généraux"]
["2025-02-20","Ajustement le cout d'un IGE & un Post doc. Nouveautés 2022&3 suprimé"]
["2025-02-27","Changement de SIRET"]